Cogmind - Beta 15 @@@ ROGUE MODE // 2025.07.23 @ 00:49:58 Player: Florist Result: Destroyed by S-27 Virus with Autogun Performance ------------- Evolutions (5) 2500 Regions Visited (11) 2200 Robots Destroyed (252) 1260 Value Destroyed (8081) 8081 Prototype IDs (21) 420 Alien Tech Used (0) 0 Bonus (1946) 1946 TOTAL SCORE: 16407 Bonus ------- High Alert Combat Kills 1534 Follower Combat Kills 922 Friendly Fire -510 Cogmind --------- Core Integrity 0/1000 Matter 121/300 Energy 175/175 System Corruption 12% Temperature Cool (0) Movement Treading (170) Location -5/Factory Parts ------- > --- POWER (1) -------- Ion-Fission Engine > --- PROPULSION (5) --- Armored Medium Treads Armored Medium Treads (fused) Armored Medium Treads > --- UTILITY (7) ------ Advanced Heat Sink Medium Storage Unit Targeting Computer Weapon Cycler Improved Transmission Jammer Advanced System Restoration Module > --- WEAPON (4) ------- Heavy Assault Rifle Ballistic Hardcell Construct/C Makeshift Sword > --- INVENTORY (10) --- (None) Peak State ------------ > --- POWER ------------ Ion-Fission Engine > --- PROPULSION ------- Treaded Armored-Antigrav Exoskeleton > --- UTILITY ---------- Armored Scrap Engine Improved Heat Sink Advanced Heat Sink Huge Storage Unit Weapon Cycler Improved Medium Armor Plating > --- WEAPON ----------- Enhanced Gauss Cannon Improved Grenade Launcher Ballistic Hardcell Construct/C > --- INVENTORY -------- Cold Fusion Reactor Cold Fusion Reactor Cold Fusion Reactor VTOL Module Huge Storage Unit High-capacity Matter Pod Improved Signal Interpreter Improved Targeting Computer Weapon Cycler Improved Transmission Jammer Improved Reaction Control System Improved Light Armor Plating Improved Medium Armor Plating Improved Medium Armor Plating Improved Medium Armor Plating Hacking Suite System Restoration Module Improved Grenade Launcher Plasma Cutter Makeshift Sword Piercing Trap [Rating: 78] Favorites ----------- Power Cooled Ion Engine Engine Cooled Ion Engine Power Core Light Nuclear Core Reactor Cold Fusion Reactor Propulsion Light Treads Treads Light Treads Wheel Compact Wheel Utility Huge Storage Unit Device Improved Heat Sink Storage Huge Storage Unit Processor Targeting Computer Hackware Hacking Suite Protection Improved Light Armor Plating Weapon Heavy Assault Rifle Energy Gun Advanced Beam Rifle Ballistic Gun Heavy Assault Rifle Ballistic Cannon Constructs Launcher Improved Grenade Launcher Special Weapon Plasma Cutter Slashing Weapon Makeshift Sword Build | -11 -10 -10 -8 -7 -7 -7 -7 -7 -5 -5 -5 ------- Run | Yrd Mat Sub Mat Fac Was Fac Sto Rec Fac Was Fac Slots Evolved 10 | . . . 4 2 . . . . 4 . . Power . | . . . . . . . . . . . . Propulsion 3 | . . . 2 1 . . . . . . . Utility 5 | . . . 2 . . . . . 3 . . Weapon 2 | . . . . 1 . . . . 1 . . Parts Attached 118 | 7 6 8 36 2 4 2 19 7 10 1 16 Power 8 | 1 . 1 2 . . . 2 . 1 . 1 Engine 6 | 1 . 1 1 . . . 2 . . . 1 Core 1 | . . . 1 . . . . . . . . Reactor 1 | . . . . . . . . . 1 . . Propulsion 35 | 2 1 1 16 . 2 . 7 2 . . 4 Treads 30 | 2 1 1 12 . 2 . 7 1 . . 4 Leg . | . . . . . . . . . . . . Wheel 5 | . . . 4 . . . . 1 . . . Hover . | . . . . . . . . . . . . Flight . | . . . . . . . . . . . . Utility 41 | 2 2 1 10 1 . 1 6 2 7 1 8 Device 19 | 1 . . 2 1 . 1 3 1 4 1 5 Storage 5 | 1 2 . 1 . . . . . . . 1 Processor 2 | . . . . . . . . . . . 2 Hackware 1 | . . . 1 . . . . . . . . Protection 14 | . . 1 6 . . . 3 1 3 . . Artifact . | . . . . . . . . . . . . Weapon 34 | 2 3 5 8 1 2 1 4 3 2 . 3 Energy Gun 9 | 2 . . 2 1 . 1 3 . . . . Energy Cannon . | . . . . . . . . . . . . Ballistic Gun 15 | . 3 3 6 . . . . 1 . . 2 Ballistic Cannon 4 | . . . . . . . . 1 2 . 1 Launcher 3 | . . 1 . . 2 . . . . . . Special Weapon 1 | . . . . . . . 1 . . . . Impact Weapon . | . . . . . . . . . . . . Slashing Weapon 2 | . . 1 . . . . . 1 . . . Piercing Weapon . | . . . . . . . . . . . . Special Melee Weapon . | . . . . . . . . . . . . Unidentified Prototypes 6 | . . . 2 . . . 1 1 1 . 1 Parts Lost 58 | . . 7 15 1 . . 10 5 15 . 5 Power 6 | . . 2 1 . . . 1 . 2 . . Propulsion 20 | . . 2 8 1 . . 3 2 2 . 2 Utility 18 | . . . 5 . . . 3 1 7 . 2 Weapon 14 | . . 3 1 . . . 3 2 4 . 1 Highest Loss Streak 11 | . . 4 4 1 . . 5 3 11 . 4 To Critical Strikes 1 | . . 1 . . . . . . . . . Average Backups 14 | 2 10 14 14 18 20 21 19 13 17 5 . Power 1 | . 1 1 1 2 2 2 1 2 2 1 . Propulsion 2 | 1 2 3 2 4 4 5 4 . . . . Utility 5 | . 2 3 5 8 8 7 6 6 10 2 . Weapon 4 | . 5 5 5 3 4 6 5 3 3 1 . Tool/Special . | . . . . . . . . . . . . Unused Backups 34 | . . . 2 . 4 . 3 10 14 . 1 Power 7 | . . . . . 1 . . . 5 . 1 Propulsion 13 | . . . 1 . . . 3 8 1 . . Utility 14 | . . . 1 . 3 . . 2 8 . . Weapon . | . . . . . . . . . . . . Tool/Special . | . . . . . . . . . . . . Average Slot Usage (%) 81 | . 99 91 86 89 85 84 86 60 56 6 61 Engine 5 | . 14 6 3 7 7 7 6 6 . . 3 Core 1 | . . . 4 . . . . . . . . Treads 23 | . 27 27 24 28 24 23 26 17 3 . 19 Wheel 1 | . . . 4 . . . . . 4 . . Device 11 | . 14 8 7 14 15 15 14 11 23 6 14 Storage 9 | . 14 14 9 7 7 7 7 7 4 . 4 Protection 6 | . . 5 13 7 7 7 6 1 2 . . Energy Gun 6 | . 5 . 2 22 18 22 21 7 . . . Ballistic Gun 12 | . 22 27 15 . . . . 3 . . 3 Peak Build Rating 78 | 7 10 15 33 38 61 63 67 59 78 24 70 Average Rating 32 | 5 9 11 23 36 46 61 57 48 65 21 53 On Entrance 29 | . 7 10 14 31 37 61 62 45 45 20 20 Naked Turns . | . . . . . . . . . . . . Heaviest Build 125 | 11 90 92 113 99 107 108 113 108 125 2 33 Greatest Support 165 | 40 40 40 83 83 165 165 165 116 74 3 131 Greatest Overweight (x) 33 | . 2 2 33 1 1 . 1 2 1 . 1 Average Overweight (x) 1 | . 1 2 3 1 . . . . . . . Largest Inventory Capacity 25 | 8 25 25 25 25 25 25 25 25 25 5 10 Average Capacity 23 | 7 20 25 25 25 25 25 25 25 24 5 9 Most Carried 25 | 4 15 25 25 25 25 25 25 20 23 5 5 Average Carried 17 | 2 11 16 23 23 24 25 23 14 18 4 . Final Capacity 25 | 8 25 25 25 25 25 25 25 25 5 5 10 Final Carried 25 | 4 15 25 25 25 25 25 20 16 5 5 . Scrap Engine Consumption 61 | . . . . . . . . 35 16 2 8 Constructs Created 8 | . . . . . . . . 3 1 1 3 Constructs Modified 17 | . . . . . . . . 12 4 . 1 Class Distribution -------------------- 45% | Mutant 15% | Scavenger-Mutant 12% | Construct 12% | Tank 8% | Scavenger-Tank Dominant Class ---------------- Mutant | -10/Materials Mutant | -10/Subcaves Scavenger-Mutant | -8/Materials Scavenger-Tank | -7/Factory Tank | -7/Waste Tank | -7/Factory Tank | -7/Storage Construct | -7/Recycling Construct | -5/Factory Mutant | -5/Waste Mutant | -5/Factory Resources | -11 -10 -10 -8 -7 -7 -7 -7 -7 -5 -5 -5 ----------- Run | Yrd Mat Sub Mat Fac Was Fac Sto Rec Fac Was Fac Matter Collected 5625 | 270 483 467 1785 38 70 125 801 395 792 . 399 Remotely . | . . . . . . . . . . . . Salvage Created 9495 | 245 486 409 2730 545 . 47 2497 250 1448 . 838 Parts 469 | 17 41 27 144 17 . 2 98 10 82 . 31 Haulers Intercepted 12 | . 1 . 2 1 . . 5 . 2 . 1 Recyclers Shooed 10 | 1 . . 6 . . . . . 2 . 1 Parts Field Recycled . | . . . . . . . . . . . . Retrieved Matter . | . . . . . . . . . . . . Parts Self-Destructed 5 | . . 5 . . . . . . . . . Prevented . | . . . . . . . . . . . . Kills | -11 -10 -10 -8 -7 -7 -7 -7 -7 -5 -5 -5 ------- Run | Yrd Mat Sub Mat Fac Was Fac Sto Rec Fac Was Fac Combat Hostiles Destroyed 167 | . 17 9 41 3 . 1 49 5 31 . 11 Melee 1 | . . . . . . . . . . . 1 Guns 95 | . 17 7 41 . . 1 23 4 . . 2 Cannons 26 | . . . . . . . . . 18 . 8 AOE 37 | . . 2 . . . . 22 . 13 . . Classes Destroyed 20 | 3 4 3 1 2 . . 6 . 1 . . Worker 23 | 2 . . 9 2 . . 4 . 6 . . Builder 11 | . . . . . . . 1 . 10 . . Tunneler 9 | 7 . . . 1 . . . . . . 1 Hauler 12 | . 1 . 2 1 . . 5 . 2 . 1 Recycler 13 | 1 . . 6 3 . . 1 . 1 . 1 Mechanic 5 | . . . 1 . . . 3 . . . 1 Operator 1 | . . . . . . . 1 . . . . Watcher 10 | . 1 . 3 2 . . 1 . 2 . 1 Swarmer 37 | . 11 . 7 . . . 4 . 11 . 4 Grunt 67 | . 6 1 25 . . 1 21 . 10 . 3 Brawler 2 | . . . . . . . 1 . . . 1 Duelist 4 | . . . . . . . 4 . . . . Protector 3 | . . . . . . . 3 . . . . Sentry 26 | . . 1 9 1 . . 9 3 2 . 1 Specialist 4 | . . . . . . . 1 . 3 . . Hunter 4 | . . . . 1 . . 1 . . . 2 Programmer 10 | . . . . 1 . . 5 . 4 . . Behemoth 1 | . . . . . . . . . 1 . . Artisan 2 | . . 2 . . . . . . . . . Subdweller 9 | . . 7 . . . . . 2 . . . Savage 1 | . . . . . . . 1 . . . . Best Kill Streak 29 | 5 4 3 7 3 . 1 12 1 29 . 5 Combat Bots Only 17 | . 3 3 7 1 . 1 8 1 17 . 5 Max Kills in Single Turn 7 | 1 1 2 2 2 . 1 7 1 6 . 1 Gunslinging . | . . . . . . . . . . . . Exploded 4 | . . 2 . . . . 4 . 3 . . Melee 1 | . . . . . . . . . . . 1 Uniques/NPCs Destroyed . | . . . . . . . . . . . . Combat | -11 -10 -10 -8 -7 -7 -7 -7 -7 -5 -5 -5 -------- Run | Yrd Mat Sub Mat Fac Was Fac Sto Rec Fac Was Fac Hostile Shots Fired 1417 | . 54 37 264 43 . 7 389 128 374 1 120 Missed 421 | . 12 11 51 15 . 3 137 37 116 . 39 Hits 996 | . 42 26 213 28 . 4 252 91 258 1 81 Melee 6 | . . . . . . . 5 . . 1 . Projectile 990 | . 42 26 213 28 . 4 247 91 258 . 81 AOE 2 | . . 2 . . . . . . . . . Critical Strikes 30 | . . 3 12 . . . 6 . 9 . . Damage Taken 14541 | . 398 694 3194 303 68 108 2873 816 4664 51 1372 Core 1720 | . 75 111 255 . . . 157 114 762 51 195 Absorbed by Shields . | . . . . . . . . . . . . Regen/Repaired (Parts) 872 | . . . . . 131 33 34 289 385 . . Core Remaining (%) 59 | 100 . 25 53 . . . . 61 . . . Volleys Fired 651 | 17 44 34 256 24 3 8 113 23 70 . 59 Largest 3 | 2 2 2 2 3 3 3 3 3 3 . 3 Hottest 231 | 80 80 53 122 183 183 183 231 201 195 . 95 Shots Fired 1396 | 34 89 68 505 72 10 24 309 52 129 . 104 Gun 1178 | 34 89 65 505 72 10 22 284 52 . . 45 Cannon 172 | . . . . . . . . . 113 . 59 Launcher 46 | . . 3 . . . 2 25 . 16 . . Special . | . . . . . . . . . . . . Kinetic 840 | . 81 65 483 . . . . 20 87 . 104 Thermal 510 | 34 8 . 22 72 10 22 284 32 26 . . Explosive 46 | . . 3 . . . 2 25 . 16 . . Electromagnetic . | . . . . . . . . . . . . Robot Hit Streak 24 | 11 13 16 17 19 5 2 16 24 7 . 17 Robot Miss Streak 7 | 2 5 2 4 3 2 4 5 2 7 . 3 Penetration Max 1 | . . . . . . . . . 1 . . Secondary Targets 10 | . . . 5 . . 1 4 . . . . Max Gunslinging Chain 1 | . . . 1 . . 1 1 . . . . Shots Hit Robots 905 | 22 58 52 351 37 7 6 189 39 65 . 79 Core Hits 490 | 11 21 23 130 13 2 8 146 11 91 . 34 Critical Kills 3 | . . 1 2 . . . . . . . . Critical Parts Destroyed 7 | . . . 6 . . . . . 1 . . Critical Strikes 50 | . . 1 9 2 . 1 22 2 12 . 1 Burn 27 | . . . . 2 . 1 22 2 . . . Destroy 12 | . . 1 9 . . . . . 2 . . Blast 10 | . . . . . . . . . 10 . . Sever 1 | . . . . . . . . . . . 1 Melee Attacks 14 | . . 4 . . . . . . . . 10 Impact . | . . . . . . . . . . . . Slashing 14 | . . 4 . . . . . . . . 10 Piercing . | . . . . . . . . . . . . Sneak Attacks 5 | . . 1 . . . . . . . . 4 Combat Hostiles . | . . . . . . . . . . . . Follow-up Attacks . | . . . . . . . . . . . . Damage Inflicted 25593 | 239 850 1385 5118 845 140 342 7680 876 6026 . 2092 Guns 13293 | 239 850 763 5115 845 140 120 3884 876 . . 461 Cannons 4658 | . . . . . . . . . 3499 . 1159 Explosions 7097 | . . 552 . . . 222 3796 . 2527 . . Melee 542 | . . 70 . . . . . . . . 472 Ramming 3 | . . . 3 . . . . . . . . Kinetic 10822 | . 797 763 4743 . . . . 349 2550 . 1620 Thermal 7200 | 239 53 . 372 845 140 120 3884 527 1020 . . Explosive 6874 | . . 552 . . . 222 3796 . 2304 . . Electromagnetic 152 | . . . . . . . . . 152 . . Impact . | . . . . . . . . . . . . Slashing 542 | . . 70 . . . . . . . . 472 Piercing . | . . . . . . . . . . . . Highest Corruption 18 | . 1 1 3 3 3 3 8 8 12 18 14 Average Corruption 3 | . 1 1 1 2 3 3 3 8 4 14 13 Corruption Purged 6 | . . . . . . . . . . 4 2 Corruption Blocked . | . . . . . . . . . . . . Effects 254 | . 10 32 16 7 9 6 42 83 9 4 36 Message Errors 49 | . . 5 2 . 1 2 11 18 3 3 4 Matter Fused 73 | . 6 11 4 3 4 1 8 26 1 . 9 Heat Flow Errors 32 | . 2 4 2 . 1 2 5 12 1 . 3 Energy Discharges 35 | . . 5 5 2 1 1 6 7 1 . 7 Parts Fused 6 | . 1 1 . . . . . 2 . . 2 Data Loss (minor) 24 | . . 1 1 1 1 . 6 8 2 . 4 Data Loss (major) 11 | . . 2 . . . . 3 6 . . . Misfires 9 | . 1 2 . 1 1 . 2 2 . . . Alerts 8 | . . 1 2 . . . 1 1 1 . 2 Misdirections 1 | . . . . . . . . . . 1 . Weapon Failures 6 | . . . . . . . . 1 . . 5 Overload Shots . | . . . . . . . . . . . . Overflow Damage 470 | . . 40 13 . . . 33 . 372 . 12 Projectiles 322 | . . . . . . . . . 310 . 12 Explosions 108 | . . . 13 . . . 33 . 62 . . Melee 40 | . . 40 . . . . . . . . . Knockbacks 26 | . . . . . . . . . 16 . 10 Impact . | . . . . . . . . . . . . Kinetic 23 | . . . . . . . . . 13 . 10 Secondary 3 | . . . . . . . . . 3 . . Self-Inflicted Damage 324 | . . 16 56 . . 24 27 . 201 . . Shots 11 | . . 1 1 . . 1 2 . 6 . . Rammed 2 | . . . 2 . . . . . . . . Targets Rammed 2 | . . . 2 . . . . . . . . Kicked . | . . . . . . . . . . . . Crushed . | . . . . . . . . . . . . Highest Temperature 353 | 144 163 269 277 274 171 273 353 278 100 . 191 Average Temperature 67 | 48 39 112 72 87 78 69 76 78 26 . 35 Received Heat Transfer 4199 | . 114 428 1656 36 9 45 882 246 576 . 207 Effects 4 | . . . . . . . 4 . . . . Interference 3 | . . . . . . . 3 . . . . Matter Decay 1 | . . . . . . . 1 . . . . Siege Activations . | . . . . . . . . . . . . Martial Activations . | . . . . . . . . . . . . Shielding Activations . | . . . . . . . . . . . . Robots Disrupted . | . . . . . . . . . . . . Combat Hostiles . | . . . . . . . . . . . . Robots Corrupted . | . . . . . . . . . . . . Combat Hostiles . | . . . . . . . . . . . . Parts Fried . | . . . . . . . . . . . . Impact Corruptions 1 | . . . . . . . . . 1 . . Robots Melted 8 | . . . . 3 . . 4 1 . . . Combat Hostiles 8 | . . . . 3 . . 4 1 . . . Parts Melted 42 | 2 . . 2 4 . . 30 4 . . . Heat Transferred 13401 | 550 125 . 666 1628 259 296 8341 1036 500 . . Parts Sabotaged . | . . . . . . . . . . . . Parts Stolen . | . . . . . . . . . . . . Parts Stripped . | . . . . . . . . . . . . Power Chain Reactions 1 | . . . . . . . . . 1 . . Alert | -11 -10 -10 -8 -7 -7 -7 -7 -7 -5 -5 -5 ------- Run | Yrd Mat Sub Mat Fac Was Fac Sto Rec Fac Was Fac Maximum Alert Level 4 | . 1 . 2 1 . 2 4 2 3 1 . Low Security (%) 63 | 100 99 . 60 76 100 25 . 73 78 . 100 Level 1 12 | . . . 18 23 . 54 6 17 . 100 . Level 2 9 | . . . 21 . . 20 7 9 7 . . Level 3 10 | . . . . . . . 61 . 12 . . Level 4 3 | . . . . . . . 23 . . . . Level 5 . | . . . . . . . . . . . . High Security . | . . . . . . . . . . . . Max Security . | . . . . . . . . . . . . Peak Influence 1309 | 15 205 . 607 272 26 604 1309 510 793 252 162 Initial 510 | . 9 . . 272 26 . 265 510 50 252 162 Average 266 | 2 79 . 222 150 3 274 907 118 215 241 80 Influence Increases 6734 | 50 498 50 1281 175 55 854 2105 68 1257 . 341 Destroy 0b10 Robot/C 3580 | . 340 40 820 60 . 340 1080 60 620 . 220 Destroy 0b10 Robot/NC 460 | 50 10 . 105 45 . 15 105 . 105 . 25 Destroy Leader 830 | . 74 10 210 36 . 74 254 . 128 . 44 Allied During Kill 783 | . . . . . . 353 430 . . . . Trap Triggered on 0b10 10 | . . . . . . . . . 10 . . Successful Hack 38 | . 11 . 6 . . . 21 . . . . Disable Machine 315 | . 15 . 30 15 . 30 90 . 105 . 30 Destroy Structure 458 | . 3 . 35 4 55 42 95 8 194 . 22 Advance Influence 50 | . . . . . . . . . 50 . . Partial Spotted 15 | . . . . 15 . . . . . . . Lose Combat Pursuer 195 | . 45 . 75 . . . 30 . 45 . . Influence Decreases 6615 | 35 391 172 682 699 130 270 1380 1377 536 489 454 Entered New Map 2098 | . 6 59 . 327 49 . 319 799 . 469 70 Time Decay 3554 | 35 385 100 542 362 81 170 601 538 386 20 334 Lost Part 503 | . . 13 140 10 . . 100 40 150 . 50 Lost Ally 460 | . . . . . . 100 360 . . . . Squads Dispatched 45 | . 3 . 10 3 . 4 14 . 9 . 2 Investigation 5 | . 1 . 1 . . 2 . . 1 . . Extermination 9 | . . . . 1 . 1 4 . 2 . 1 Reinforcement 19 | . 2 . 4 2 . 1 5 . 4 . 1 Assault 8 | . . . 1 . . . 5 . 2 . . Garrison 4 | . . . 4 . . . . . . . . Intercept . | . . . . . . . . . . . . Searches Triggered . | . . . . . . . . . . . . Construction Impeded 4 | . . . 1 . . . 1 . 2 . . Haulers Reinforced 4 | . . . . . . . 2 . 1 . 1 Active Scanning Responses . | . . . . . . . . . . . . Cargo Convoy Interrupts 1 | . . . . . . . . . 1 . . Stealth | -11 -10 -10 -8 -7 -7 -7 -7 -7 -5 -5 -5 --------- Run | Yrd Mat Sub Mat Fac Was Fac Sto Rec Fac Was Fac Distress Signals 22 | . 1 . 9 . . 3 1 3 4 . 1 Communications Jammed . | . . . . . . . . . . . . Distress Signals . | . . . . . . . . . . . . Times Spotted 281 | . 22 20 73 8 2 18 62 5 51 5 15 Peak Tracking Total 13 | . 4 7 7 2 2 7 11 1 13 5 6 Tactical Retreats 12 | . 3 . 5 . . . 2 . 2 . . Traps | -11 -10 -10 -8 -7 -7 -7 -7 -7 -5 -5 -5 ------- Run | Yrd Mat Sub Mat Fac Was Fac Sto Rec Fac Was Fac Traps Triggered 11 | . 3 1 2 1 . 1 1 . 1 . 1 Indirectly . | . . . . . . . . . . . . Trap Hack Attempts . | . . . . . . . . . . . . Triggered . | . . . . . . . . . . . . Disarmed . | . . . . . . . . . . . . Reprogrammed . | . . . . . . . . . . . . Reused 1 | . . . . . . . . . 1 . . Traps Extracted . | . . . . . . . . . . . . Installed 1 | . . . . . . . . . 1 . . Triggered 1 | . . . . . . . . . 1 . . Most Traps Carried 1 | . . 1 1 1 1 1 1 1 1 . . Machines | -11 -10 -10 -8 -7 -7 -7 -7 -7 -5 -5 -5 ---------- Run | Yrd Mat Sub Mat Fac Was Fac Sto Rec Fac Was Fac Machines Disabled 22 | . 1 1 2 1 . 2 6 . 7 . 2 Max in Single Turn 2 | . 1 1 1 1 . 2 1 . 2 . 1 Machines Repaired . | . . . . . . . . . . . . Machines Dismantled 2 | . . . . . . . 2 . . . . Machines Sabotaged . | . . . . . . . . . . . . Overloaded Fab Kills . | . . . . . . . . . . . . Hacking | -11 -10 -10 -8 -7 -7 -7 -7 -7 -5 -5 -5 --------- Run | Yrd Mat Sub Mat Fac Was Fac Sto Rec Fac Was Fac Machines Accessed 24 | . 3 1 5 1 . 1 6 6 1 . . Terminals 20 | . 3 . 5 1 . 1 6 3 1 . . Fabricators . | . . . . . . . . . . . . Repair Stations . | . . . . . . . . . . . . Recycling Units 1 | . . . . . . . . 1 . . . Scanalyzers . | . . . . . . . . . . . . Garrison Access . | . . . . . . . . . . . . Total Hacks 68 | . 14 1 17 3 . 3 12 14 4 . . Successful 33 | . 9 1 7 1 . . 9 6 . . . Failed 35 | . 5 . 10 2 . 3 3 8 4 . . Catastrophic 7 | . . . 3 1 . . 1 1 1 . . Database Lockouts . | . . . . . . . . . . . . Manual 52 | . 10 . 16 3 . . 12 7 4 . . Terminals 60 | . 14 . 17 3 . 3 12 7 4 . . Fabricators . | . . . . . . . . . . . . Repair Stations . | . . . . . . . . . . . . Recycling Units 3 | . . . . . . . . 3 . . . Scanalyzers . | . . . . . . . . . . . . Garrison Access . | . . . . . . . . . . . . Terminal Hacks 14 | . 2 1 3 1 . . 2 5 . . . Record 2 | . . . . . . . . 2 . . . Robot Analysis 1 | . . . 1 . . . . . . . . Open Door 2 | . . . . . . . 2 . . . . Branch Access Points 2 | . . . 1 1 . . . . . . . Alert Level 1 | . . . . . . . . 1 . . . Locate Traps 2 | . 1 . 1 . . . . . . . . Hauler Manifests 1 | . 1 . . . . . . . . . . Proto ID Catalog 1 | . . 1 . . . . . . . . . Release Object 2 | . . . . . . . . 2 . . . Fabricator Hacks . | . . . . . . . . . . . . Repair Station Hacks . | . . . . . . . . . . . . Recycling Unit Hacks . | . . . . . . . . . . . . Scanalyzer . | . . . . . . . . . . . . Garrison Access Hacks . | . . . . . . . . . . . . Unauthorized Hacks 19 | . 7 . 4 . . . 7 1 . . . Terminals 19 | . 7 . 4 . . . 7 1 . . . Assimilate 1 | . 1 . . . . . . . . . . Botnet 9 | . 3 . 3 . . . 3 . . . . Skim 9 | . 3 . 1 . . . 4 1 . . . Fabricators . | . . . . . . . . . . . . Repair Stations . | . . . . . . . . . . . . Recycling Units . | . . . . . . . . . . . . Scanalyzers . | . . . . . . . . . . . . Garrison Access . | . . . . . . . . . . . . Data Cores Recovered . | . . . . . . . . . . . . Used . | . . . . . . . . . . . . Hacking Detections 20 | . 2 . 5 1 . 1 6 4 1 . . Full Trace Events 4 | . . . 1 . . 1 . 1 1 . . Feedback Events . | . . . . . . . . . . . . Feedback Blocked . | . . . . . . . . . . . . Robot Schematics Acquired . | . . . . . . . . . . . . Robots Built . | . . . . . . . . . . . . Authchips . | . . . . . . . . . . . . Time . | . . . . . . . . . . . . Total Robot Build Rating . | . . . . . . . . . . . . Part Schematics Acquired . | . . . . . . . . . . . . Parts Built . | . . . . . . . . . . . . Authchips . | . . . . . . . . . . . . Time . | . . . . . . . . . . . . Total Part Build Rating . | . . . . . . . . . . . . Parts Repaired . | . . . . . . . . . . . . Time . | . . . . . . . . . . . . Parts Recycled . | . . . . . . . . . . . . Recycled Matter . | . . . . . . . . . . . . Retrieved Matter . | . . . . . . . . . . . . Retrieved Components . | . . . . . . . . . . . . Parts Scanalyzed . | . . . . . . . . . . . . Part Schematics Acquired . | . . . . . . . . . . . . Parts Damaged . | . . . . . . . . . . . . Bothacking | -11 -10 -10 -8 -7 -7 -7 -7 -7 -5 -5 -5 ------------ Run | Yrd Mat Sub Mat Fac Was Fac Sto Rec Fac Was Fac Used RIF Installer . | . . . . . . . . . . . . Robots Hacked . | . . . . . . . . . . . . Non-combat . | . . . . . . . . . . . . Combat . | . . . . . . . . . . . . Robot Hacks Applied . | . . . . . . . . . . . . Relay Couplers Released . | . . . . . . . . . . . . Fabnet Peak Effective % . | . . . . . . . . . . . . Robots Rewired . | . . . . . . . . . . . . Allies Hacked 1 | . . . . . . . 1 . . . . Hacks Repelled . | . . . . . . . . . . . . Allies | -11 -10 -10 -8 -7 -7 -7 -7 -7 -5 -5 -5 -------- Run | Yrd Mat Sub Mat Fac Was Fac Sto Rec Fac Was Fac Total Allies 30 | . . . . . 18 . 12 . . . . Largest Group 18 | . . . . . 18 14 16 . . . . Highest-Rated Group 434 | . . . . . 434 377 328 . . . . Highest-Rated Ally 35 | . . . . . 35 35 31 . . . . Total Orders 1 | . . . . . . . 1 . . . . STAY 1 | . . . . . . . 1 . . . . Ally Attacks 311 | . . . . . 126 83 102 . . . . Total Damage 7356 | . . . . . 4164 2016 1176 . . . . Kills 40 | . . . . . 10 20 10 . . . . Allies Corrupted . | . . . . . . . . . . . . Allies Melted 1 | . . . . . . 1 . . . . . Intel | -11 -10 -10 -8 -7 -7 -7 -7 -7 -5 -5 -5 ------- Run | Yrd Mat Sub Mat Fac Was Fac Sto Rec Fac Was Fac Active Infowar (turns) 6119 | 51 1268 2318 . 748 547 381 792 . . . 14 Sensors 2468 | . . . . 748 547 381 792 . . . . Seismic 3637 | 51 1268 2318 . . . . . . . . . Jamming 14 | . . . . . . . . . . . 14 Robot Analysis Total 1 | . . . 1 . . . . . . . . Derelict Logs Recovered 2 | . . 2 . . . . . . . . . Drone Launches . | . . . . . . . . . . . . Drone Recoveries . | . . . . . . . . . . . . Exploration | -11 -10 -10 -8 -7 -7 -7 -7 -7 -5 -5 -5 ------------- Run | Yrd Mat Sub Mat Fac Was Fac Sto Rec Fac Was Fac Turns Passed 16668 | 237 1268 3941 3353 839 547 381 1925 2459 916 59 743 Spaces Moved 5614 | 106 370 1177 873 288 239 201 756 709 484 107 304 Core 250 | 1 . . 35 . . . . . 58 107 49 Treads 4489 | 105 370 1177 506 288 239 201 756 592 . . 255 Legs . | . . . . . . . . . . . . Wheels 875 | . . . 332 . . . . 117 426 . . Hover . | . . . . . . . . . . . . Flight . | . . . . . . . . . . . . Fastest Speed 50 | 50 160 320 135 240 160 160 160 127 50 50 50 Average Speed 218 | 158 247 320 265 240 187 160 175 174 129 50 138 Slowest Speed 1700 | 160 320 320 1700 240 240 160 240 286 175 50 160 Overloaded Moves . | . . . . . . . . . . . . Propulsion Burnouts . | . . . . . . . . . . . . Robots Hopped . | . . . . . . . . . . . . Potential Cave-ins . | . . . . . . . . . . . . Cave-ins Triggered . | . . . . . . . . . . . . Exploration Rate (%) 50 | 5 69 49 73 9 93 9 87 96 16 90 7 Regions Visited 11 Branch Regions 3 Pre-discovered Areas 1 | . . 1 . . . . . . . . . Known Exits Taken 1 | . . . . . . 1 . . . . . Unknown Exits Taken 6 | 1 1 1 1 . . . 1 1 . . . Scrap Searched 8 | . . 8 . . . . . . . . . Spaces Dug 34 | . . . . . . . 33 1 . . . Terrain Destroyed 335 | . . 10 30 . . 10 166 8 100 . 11 Melee . | . . . . . . . . . . . . Projectile 68 | . . . 2 . . . 10 8 37 . 11 AOE 267 | . . 10 28 . . 10 156 . 63 . . Terrain Rammed . | . . . . . . . . . . . . Walls Destroyed . | . . . . . . . . . . . . Machines Disabled . | . . . . . . . . . . . . Actions | -11 -10 -10 -8 -7 -7 -7 -7 -7 -5 -5 -5 --------- Run | Yrd Mat Sub Mat Fac Was Fac Sto Rec Fac Was Fac Total 8722 | 138 635 1283 1391 386 331 241 1073 1898 687 112 547 Wait 2037 | 4 198 43 168 60 72 26 125 1106 82 3 150 Move 5605 | 105 369 1176 872 288 238 200 755 708 484 106 304 Hop . | . . . . . . . . . . . . Pick Up 111 | 5 13 13 27 7 5 . 8 14 16 1 2 Fast Attach 63 | 6 2 1 18 . 2 . 8 11 3 . 12 Attach 57 | 1 1 6 16 2 . . 10 3 12 1 5 Detach 7 | . . . . . . . . 2 5 . . Swap 53 | . 4 4 7 . 4 6 25 1 2 . . Drop 103 | . 4 2 25 5 7 1 11 30 12 1 5 Fire 651 | 17 44 34 256 24 3 8 113 23 70 . 59 Melee 14 | . . 4 . . . . . . . . 10 Ram 2 | . . . 2 . . . . . . . . Kick . | . . . . . . . . . . . . Crush . | . . . . . . . . . . . . Escape Stasis . | . . . . . . . . . . . . Rewire . | . . . . . . . . . . . . Trap 1 | . . . . . . . . . 1 . . Miscellaneous 18 | . . . . . . . 18 . . . . Route ------- -11/Scrapyard -10/Materials (discovered 4 exits: [*Mat] / [*Min x2] / *Sub) -10/Subcaves (discovered 2 exits: *Mat / [*Scr]) -8/Materials (discovered 2 exits: *Fac x2) -7/Factory (discovered 3 exits: Sto / Low x2) -7/Waste -7/Factory -7/Storage (discovered 2 exits: [*Fac] / *Rec) -7/Recycling -5/Factory -5/Waste -5/Factory History --------- Turn | Location | Event 13 | -11/Scrapyard | Discovered new exit (range 14) 238 | -11/Scrapyard | Entered Materials 315 | -10/Materials | Build established: Mutant 676 | -10/Materials | Discovered new exit (range 15) 759 | -10/Materials | Discovered new exit (range 15) 879 | -10/Materials | Discovered new exit (range 13) 1451 | -10/Materials | Discovered new exit (range 9) 1506 | -10/Materials | Entered Subcaves 1507 | -10/Subcaves | Approached by a straggling Scientist 1519 | -10/Subcaves | Shifting Twisted Machinery released Piercing Trap 1574 | -10/Subcaves | Disturbed a concealed Subdweller 1719 | -10/Subcaves | Ambushed by swarm of Subdwellers 1721 | -10/Subcaves | Ambushed by Subdwellers from Twisted Machinery 1724 | -10/Subcaves | Ambushed by Subdwellers from Twisted Machinery 1724 | -10/Subcaves | Ambushed by Subdwellers from Twisted Machinery 1845 | -10/Subcaves | Learned Materials stockpile data 1948 | -10/Subcaves | Shifting Twisted Machinery released Sub. Power Source 1955 | -10/Subcaves | Shifting Twisted Machinery released Barrage Gun 2516 | -10/Subcaves | Scientist uncovered a shortcut to Scraptown 2974 | -10/Subcaves | Discovered new exit (range 12) 3316 | -10/Subcaves | Core integrity fell below 50% 3350 | -10/Subcaves | Lost 4 parts (1p1n2w) 3962 | -10/Subcaves | Visited 4L-MR0's lab 3991 | -10/Subcaves | Found Flightbrick 5447 | -10/Subcaves | Entered Materials 5447 | -8/Materials | Evolved 4 slots: Propulsion x2, Utility x2 5730 | -8/Materials | Lost 4 parts (2n1u1w) 6300 | -8/Materials | Destroyed 7 combat bots 6410 | -8/Materials | Build established: Scavenger-Mutant 6410 | -8/Materials | Garrison activated, responded to threat 7353 | -8/Materials | Garrison activated, responded to threat 7388 | -8/Materials | Discovered new exit (range 9) 8311 | -8/Materials | Discovered new exit (range 15) 8647 | -8/Materials | First assault squad dispatched 8800 | -8/Materials | Entered Factory 8800 | -7/Factory | Evolved 2 slots: Propulsion x1, Weapon x1 9140 | -7/Factory | Build established: Scavenger-Tank 9326 | -7/Factory | Identified exit to Storage 9326 | -7/Factory | Identified exit to Lower Caves 9639 | -7/Factory | Sucked down chute 9639 | -7/Factory | Entered Waste 9679 | -7/Waste | Spotted C-40 Crusher 9710 | -7/Waste | Warlord forces began an assault 9737 | -7/Waste | Spotted C-40 Crusher 9741 | -7/Waste | Allies destroyed C-40 Crusher 9741 | -7/Waste | Spotted C-40 Crusher 9742 | -7/Waste | Allies destroyed C-40 Crusher 9782 | -7/Waste | Build established: Tank 9867 | -7/Waste | Spotted C-40 Crusher 9877 | -7/Waste | Spotted C-40 Crusher 9879 | -7/Waste | Allies destroyed C-40 Crusher 9889 | -7/Waste | Allies destroyed C-40 Crusher 9903 | -7/Waste | Lost 4 allies 10151 | -7/Waste | Discovered new exit (range 12) 10186 | -7/Waste | Entered Factory 10186 | -7/Factory | Accompanied by 14 allies 10515 | -7/Factory | Lost 5 allies 10533 | -7/Factory | Discovered exit to Storage (range 10) 10567 | -7/Factory | Entered Storage 10567 | -7/Storage | Accompanied by 8 allies 10669 | -7/Storage | Assisted by bots powering up and referring to "LRC-V3" 10757 | -7/Storage | Lost 3 allies 10854 | -7/Storage | Met a pair of Derelict thieves 10962 | -7/Storage | Destroyed 8 combat bots 10967 | -7/Storage | First assault squad dispatched 10973 | -7/Storage | Lost 14 allies 11745 | -7/Storage | Build established: Scavenger-Tank 11917 | -7/Storage | Lost 5 parts (1p2n1u1w) 12211 | -7/Storage | Discovered new exit (range 9) 12295 | -7/Storage | Build established: Tank 12486 | -7/Storage | Discovered new exit (range 4) 12492 | -7/Storage | Entered Recycling 12583 | -7/Recycling | Entered Scraplab 12598 | -7/Recycling | Found Prototype Device 12598 | -7/Recycling | Identified Scrap Engine 12912 | -7/Recycling | Build established: Gunner 12997 | -7/Recycling | Lost 3 parts (2n1w) 13258 | -7/Recycling | Build established: Mutant 13995 | -7/Recycling | Build established: Construct 14516 | -7/Recycling | Discovered new exit (range 16) 14951 | -7/Recycling | Entered Factory 14951 | -5/Factory | Evolved 4 slots: Utility x3, Weapon x1 15161 | -5/Factory | Spotted B-75 Beast 15248 | -5/Factory | Destroyed B-75 Beast 15731 | -5/Factory | Destroyed 17 combat bots 15799 | -5/Factory | Cargo convoy interrupted 15836 | -5/Factory | System corruption reached 10% 15837 | -5/Factory | Core integrity fell below 50% 15851 | -5/Factory | First assault squad dispatched 15864 | -5/Factory | Lost 11 parts (1p1n5u4w) 15867 | -5/Factory | Manually triggered Chute Trap 15867 | -5/Factory | Sucked down chute 15867 | -5/Factory | Entered Waste 15871 | -5/Waste | Spotted C-40 Crusher 15882 | -5/Waste | EMP discharged 15886 | -5/Waste | Spotted C-40 Crusher 15889 | -5/Waste | Spotted C-40 Crusher 15899 | -5/Waste | Spotted C-40 Crusher 15905 | -5/Waste | Spotted C-40 Crusher 15905 | -5/Waste | Spotted C-40 Crusher 15911 | -5/Waste | Crushed by Compactor (0 parts destroyed, 1 dropped) 15912 | -5/Waste | Core integrity fell below 20% 15921 | -5/Waste | Discovered new exit (range 12) 15926 | -5/Waste | Entered Factory 16131 | -5/Factory | Build established: Mutant 16669 | -5/Factory | Destroyed by S-27 Virus with Autogun Last Messages --------------- 16658_ Destroyed Lgt. Nuclear Core. 16658_ S-27 Virus knocked back. 16658_ K-01 Serf collects debris. 16659_ Adv. System Restoration Module purges 1% system corruption (12%). 16659_ K-01 Serf collects debris. 16660_ Treaded Armored-Antigrav Exoskeleton destroyed. 16661_ S-27 Virus destroyed. 16662_ X73QSQT#DI1N6GZTT1&CH HK 16662_ R-10 Processor collects Autogun. 16662_ K-01 Serf collects debris. 16663_ Hvy. Assault Rifle destroyed. 16663_ System corrupted: Hvy. Assault Rifle jammed. 16663_ S-27 Virus destroyed. 16665_ R-10 Processor collects VTOL Module. 16665_ K-01 Serf collects debris. 16665_ M-13 Machinist repairs G-50 Soldier. 16665_ K-01 Serf collects debris. 16668_ R-10 Processor collects VTOL Module. 16668_ K-01 Serf collects debris. 16669_ K-01 Serf cleans the Pressure Siphon. Map ----- +----------------------------------------------------+ | # #???????????????????????????????????? | | # """ """ #???????????????????????????????????? | | # """ """ #???????????????????????????????????? | | # """ """ #???????????????????????????????????? | | # #???????????????????????????????????? | | # #==! ?????????????????????????? | | # "=! ?????????????????????????? | | #######+######=! ?????????????????????????? | | ????# #??????? ???????????????????????????? | | ##### #### ??????????????????????????? | | !!% % + ??????????????????????????? | | ##### % #### ??????????????????????????? | | # ##?????????????????????????????????????? | | # #??????????????????????????????????????? | | # ##########??###????????????????????????? | | # ?k ????????????????????????? | | [# ????????????????????????? | | # """ """ """" ""????u/?????????????????? | | + """ """ """" """" #?????????????????? | | # """ """ """" """" #?????????????????? | | # #?????????????????? | | ##### """" """" """" """" #?????????????????? | | ????# ! """" """" """" """" #?????????????????? | | ????# %"""" """" ""%%%%""" #?????????????????? | | ????# k k uk% k #?????????????????? | | ????# Rs% @R #?????????????????? | | ????# k % R %% gk #?????????????????? | | ????# ################ m #?????????????????? | | ????# # ????????????## #?????????????????? | | ????# # ?????????????? R ???????????????? | | ????# #? ????????????? ????????????? | | ????# #??????????????? R ???????????? | | ????# +??????????????? ???????????? | | ????# #??????????????? u???????????? | | ????# #???????????????? #######???????????? | | ????# #???????????????? #??? ?????????????? | | ???? #???????????????? #???? ????????????? | | ???? #???????????????? #?????????????????? | | ??? #???????????????? +?????????????????? | | ???? ?????????????????? ???????????????????? | | ?????? ???????????????????????????????????????? | | ?????????????????????????????????????????????????? | | ?????????????????????????????????????????????????? | | ?????????????????????????????????????????????????? | | ?????????????????????????????????????????????????? | | ?????????????????????????????????????????????????? | | ?????????????????????????????????????????????????? | | ?????????????????????????????????????????????????? | | ?????????????????????????????????????????????????? | | ?????????????????????????????????????????????????? | +----------------------------------------------------+ Best States ------------- Heat Dissipation 87 Energy Generation 17 Energy Capacity 290 Matter Stores 300 Matter Capacity 300 Sight Range 16 Robot Scan Range 15 Terrain Scan Density 10 Jamming Range 14 Armor Coverage 950 Weapon Cycling 15 Evasion (%) 50 Targeting Accuracy 10 Recoil Reduction 5 Offensive Hacking 10 Item Schematics ----------------- None Robot Schematics ------------------ None Fabricated ------------ Nothing Repaired ---------- Nothing Alien Tech Used ----------------- None Achievements -------------- Below Challenges ------------ None Game ------ Seed IntegrityStasisAxe Manual? 0 Play Time 01:20:59 Cumulative 199.1 hours Start 2025.07.22 @ 23:27:06 End 2025.07.23 @ 00:49:58 Sessions 1 Manual Loads 0 Difficulty Rogue Special Mode None Game No. 175 Rogue 175 Adventurer 0 Explorer 0 Win Type - Total 11 Types 5/0/4/2/0/0/0/0/0/0 Lore% 74 Gallery% 69 Achievement% 66 Wizard Run 0 Options --------- Layout 1 ASCII 0 Keyboard 0 Movement Mouse Keybinds 0 Fullscreen 1 Font 32/SmallcapsGlow Map View 77x35 Zoom Use 0% Tactical HUD 1 Map Filters NONE Filters NONE Steam 1 RUN: 30236380-f0ad-47a5-854c-6321cae00004